fUST/lending_fUST_20250830
["ID","MTS","AMOUNT","RATE_DAILY","PERIOD"]
[382250678,1756552268133,-480.0,0.0002,2]
[382250680,1756552268142,-480.0,0.0002,2]
[382250682,1756552268154,-480.0,0.0002,2]
[382250684,1756552268164,-631.33,0.0002,2]
[382250701,1756552268300,-480.0,0.0002,2]
[382250704,1756552268331,-858.06,0.0002,2]
[382250706,1756552268341,-480.0,0.0002,2]
[382250708,1756552268351,-480.0,0.0002,2]
[382250710,1756552268361,-480.0,0.0002,2]
[382250712,1756552268370,-480.0,0.0002,2]
[382250714,1756552268380,-1089.22,0.0002,2]
[382250716,1756552268389,-480.0,0.0002,2]
[382250718,1756552268399,-571.73,0.0002,2]
[382250720,1756552268409,-480.0,0.0002,2]
[382250722,1756552268418,-480.0,0.0002,2]
[382250724,1756552268428,-996.36,0.0002,2]
[382250726,1756552268437,-546.67,0.0002,2]
[382250728,1756552268451,-480.0,0.0002,2]
[382250731,1756552268461,-480.0,0.0002,2]
[382250733,1756552268470,-480.0,0.0002,2]
[382250735,1756552268481,-480.0,0.0002,2]
[382250737,1756552268492,-480.0,0.0002,2]
[382250739,1756552268501,-480.0,0.0002,2]
[382250741,1756552268512,-480.0,0.0002,2]
[382250743,1756552268521,-739.32,0.0002,2]
[382250745,1756552268530,-484.81,0.0002,2]
[382250746,1756552268540,-581.47,0.0002,2]
[382250747,1756552268549,-239.4927988,0.0002,2]
[382250748,1756552268558,-480.0,0.0002,2]
[382250749,1756552268568,-169.37852413,0.0002,2]
[382250750,1756552268577,-480.0,0.0002,2]
[382250751,1756552268586,-299.49832394,0.0002,2]
[382250752,1756552268596,-1593.65,0.0002,2]
[382250753,1756552268605,-1095.57,0.0002,2]
[382250754,1756552268615,-1623.34,0.0002,2]
[382250755,1756552268624,-480.0,0.0002,2]
[382250756,1756552268633,-1498.09,0.0002,2]
[382250757,1756552268642,-480.0,0.0002,2]
[382250758,1756552268651,-480.0,0.0002,2]
[382250759,1756552268661,-480.0,0.0002,2]
[382250760,1756552268671,-480.0,0.0002,2]
[382250761,1756552268680,-480.0,0.0002,2]
[382250762,1756552268689,-480.0,0.0002,2]
[382250763,1756552268698,-480.0,0.0002,2]
[382250764,1756552268707,-535.46,0.0002,2]
[382250765,1756552268717,-480.0,0.0002,2]
[382250766,1756552268725,-265.66183539,0.0002,2]
[382250767,1756552268735,-480.0,0.0002,2]
[382250768,1756552268744,-480.0,0.0002,2]
[382250769,1756552268753,-480.0,0.0002,2]
[382250770,1756552268762,-1564.33,0.0002,2]
[382250771,1756552268771,-655.37,0.0002,2]
[382250772,1756552268781,-480.0,0.0002,2]
[382250773,1756552268790,-480.0,0.0002,2]
[382250774,1756552268799,-480.15,0.0002,2]
[382250775,1756552268809,-1654.79,0.0002,2]
[382250776,1756552268818,-480.0,0.0002,2]
[382250777,1756552268827,-480.0,0.0002,2]
[382250778,1756552268837,-495.88,0.0002,2]
[382250779,1756552268846,-480.0,0.0002,2]
[382250780,1756552268855,-480.0,0.0002,2]
[382250781,1756552268864,-480.0,0.0002,2]
[382250782,1756552268873,-806.22,0.0002,2]
[382250783,1756552268883,-480.0,0.0002,2]
[382250785,1756552268892,-1408.65,0.0002,2]
[382250787,1756552268901,-480.0,0.0002,2]
[382250789,1756552268911,-608.18,0.0002,2]
[382250791,1756552268920,-829.77,0.0002,2]
[382250793,1756552268930,-480.0,0.0002,2]
[382250795,1756552268939,-527.64,0.0002,2]
[382250797,1756552268950,-480.0,0.0002,2]
[382250799,1756552268959,-1184.03,0.0002,2]
[382250801,1756552268970,-480.0,0.0002,2]
[382250803,1756552268980,-1502.98,0.0002,2]
[382250805,1756552268989,-480.0,0.0002,2]
[382250807,1756552269001,-480.0,0.0002,2]
[382250809,1756552269010,-265.13391957,0.0002,2]
[382250811,1756552269020,-480.0,0.0002,2]
[382250813,1756552269029,-480.0,0.0002,2]
[382250815,1756552269038,-480.0,0.0002,2]
[382250817,1756552269048,-480.0,0.0002,2]
[382250819,1756552269058,-493.98,0.0002,2]
[382250821,1756552269067,-480.0,0.0002,2]
[382250823,1756552269077,-480.0,0.0002,2]
[382250825,1756552269087,-524.01,0.0002,2]
[382250827,1756552269096,-1000.44,0.0002,2]
[382250829,1756552269105,-480.0,0.0002,2]
[382250830,1756552269115,-480.0,0.0002,2]
[382250832,1756552269124,-480.0,0.0002,2]
[382250834,1756552269134,-480.0,0.0002,2]
[382250836,1756552269144,-480.0,0.0002,2]
[382250838,1756552269153,-480.0,0.0002,2]
[382250840,1756552269163,-480.0,0.0002,2]
[382250842,1756552269174,-480.0,0.0002,2]
[382250844,1756552269184,-480.0,0.0002,2]
[382250846,1756552269194,-480.0,0.0002,2]
[382250848,1756552269204,-480.0,0.0002,2]
[382250850,1756552269213,-1468.8,0.0002,2]
[382250852,1756552269223,-480.0,0.0002,2]
[382250855,1756552269234,-480.0,0.0002,2]
[382250856,1756552269244,-480.0,0.0002,2]
[382250859,1756552269254,-480.0,0.0002,2]
[382250861,1756552269264,-658.8,0.0002,2]
[382250863,1756552269273,-687.07,0.0002,2]
[382250865,1756552269283,-480.0,0.0002,2]
[382250867,1756552269292,-480.0,0.0002,2]
[382250868,1756552269301,-480.0,0.0002,2]
[382250870,1756552269310,-480.0,0.0002,2]
[382250872,1756552269320,-1515.47,0.0002,2]
[382250874,1756552269329,-480.0,0.0002,2]
[382250876,1756552269338,-480.0,0.0002,2]
[382250878,1756552269348,-1050.64,0.0002,2]
[382250880,1756552269357,-480.0,0.0002,2]
[382250882,1756552269367,-1230.04,0.0002,2]
[382250884,1756552269378,-480.0,0.0002,2]
[382250886,1756552269388,-488.42,0.0002,2]
[382250888,1756552269398,-480.0,0.0002,2]
[382250890,1756552269407,-812.59,0.0002,2]
[382250892,1756552269418,-480.0,0.0002,2]
[382250894,1756552269427,-480.0,0.0002,2]
[382250896,1756552269438,-767.39,0.0002,2]
[382250898,1756552269451,-480.0,0.0002,2]
[382250901,1756552269460,-480.0,0.0002,2]
[382250903,1756552269470,-480.0,0.0002,2]
[382250905,1756552269480,-480.0,0.0002,2]
[382250906,1756552269491,-552.54,0.0002,2]
[382250909,1756552269501,-1451.95,0.0002,2]
[382250911,1756552269511,-480.0,0.0002,2]
[382250913,1756552269522,-706.25,0.0002,2]
[382250914,1756552269531,-1252.37,0.0002,2]
[382250916,1756552269540,-480.0,0.0002,2]
[382250918,1756552269550,-480.0,0.0002,2]
[382250920,1756552269560,-1168.66,0.0002,2]
[382250923,1756552269570,-480.0,0.0002,2]
[382250924,1756552269581,-994.02,0.0002,2]
[382250927,1756552269593,-480.0,0.0002,2]
[382250928,1756552269602,-480.0,0.0002,2]
[382250930,1756552269612,-1119.41,0.0002,2]
[382250932,1756552269621,-415.35213037,0.0002,2]
[382250934,1756552269630,-480.0,0.0002,2]
[382250936,1756552269639,-578.86,0.0002,2]
[382250938,1756552269650,-686.69,0.0002,2]
[382250940,1756552269660,-480.0,0.0002,2]
[382250942,1756552269669,-480.0,0.0002,2]
[382250944,1756552269679,-480.0,0.0002,2]
[382250946,1756552269689,-1249.36,0.0002,2]
[382250948,1756552269698,-1487.98,0.0002,2]
[382250950,1756552269708,-480.0,0.0002,2]
[382250952,1756552269719,-480.0,0.0002,2]
[382250954,1756552269729,-480.0,0.0002,2]
[382250957,1756552269740,-659.07,0.0002,2]
[382250958,1756552269750,-924.38,0.0002,2]
[382250960,1756552269763,-480.0,0.0002,2]
[382250962,1756552269779,-480.0,0.0002,2]
[382250964,1756552269788,-288.83799944,0.0002,2]
[382250966,1756552269797,-488.0,0.0002,2]
[382250968,1756552269809,-633.58,0.0002,2]
[382250970,1756552269818,-1171.25,0.0002,2]
[382250972,1756552269827,-480.0,0.0002,2]
[382250974,1756552269836,-790.26,0.0002,2]
[382250976,1756552269845,-600.82,0.0002,2]
[382250978,1756552269854,-480.0,0.0002,2]
[382250980,1756552269864,-480.0,0.0002,2]
[382250982,1756552269874,-480.0,0.0002,2]
[382250984,1756552269883,-579.87,0.0002,2]
[382250986,1756552269894,-480.0,0.0002,2]
[382250988,1756552269904,-1320.49,0.0002,2]
[382250990,1756552269913,-480.0,0.0002,2]
[382250992,1756552269923,-480.0,0.0002,2]
[382250994,1756552269933,-480.0,0.0002,2]
[382250996,1756552269942,-480.0,0.0002,2]
[382250998,1756552269951,-480.0,0.0002,2]
[382251000,1756552269960,-480.0,0.0002,2]
[382251002,1756552269970,-1243.7,0.0002,2]
[382251004,1756552269979,-1000.0,0.0002,2]
[382251006,1756552269989,-480.0,0.0002,2]
[382251008,1756552269998,-480.0,0.0002,2]
[382251010,1756552270008,-558.39,0.0002,2]
[382251012,1756552270018,-527.77,0.0002,2]
[382251014,1756552270029,-480.0,0.0002,2]
[382251016,1756552270046,-467.83128519,0.0002,2]
[382251018,1756552270055,-1908.52,0.0002,2]
[382251020,1756552270065,-480.0,0.0002,2]
[382251022,1756552270074,-480.0,0.0002,2]
[382251024,1756552270083,-599.94,0.0002,2]
[382251026,1756552270092,-1011.57,0.0002,2]
[382251028,1756552270101,-480.0,0.0002,2]
[382251030,1756552270111,-480.0,0.0002,2]
[382251032,1756552270120,-480.0,0.0002,2]
[382251034,1756552270129,-480.0,0.0002,2]
[382251036,1756552270139,-534.59,0.0002,2]
[382251038,1756552270149,-518.12,0.0002,2]
[382251040,1756552270158,-480.0,0.0002,2]
[382251042,1756552270168,-480.0,0.0002,2]
[382251044,1756552270178,-1426.93,0.0002,2]
[382251046,1756552270188,-480.0,0.0002,2]
[382251048,1756552270197,-480.0,0.0002,2]
[382251050,1756552270206,-480.0,0.0002,2]
[382251052,1756552270216,-480.0,0.0002,2]
[382251054,1756552270225,-454.5579201,0.0002,2]
[382251056,1756552270235,-233.35357087,0.0002,2]
[382251058,1756552270244,-480.0,0.0002,2]
[382251060,1756552270254,-480.0,0.0002,2]
[382251062,1756552270263,-480.0,0.0002,2]
[382251064,1756552270273,-480.0,0.0002,2]
[382251066,1756552270282,-480.0,0.0002,2]
[382251068,1756552270291,-480.0,0.0002,2]
[382251070,1756552270300,-1669.327936,0.0002,2]
[382251072,1756552270309,-480.0,0.0002,2]
[382251074,1756552270319,-480.0,0.0002,2]
[382251076,1756552270328,-480.0,0.0002,2]
[382251078,1756552270338,-498.04,0.0002,2]
[382251080,1756552270347,-1402.72,0.0002,2]
[382251082,1756552270356,-480.0,0.0002,2]
[382251084,1756552270366,-480.0,0.0002,2]
[382251086,1756552270375,-480.0,0.0002,2]
[382251088,1756552270384,-480.0,0.0002,2]
[382251090,1756552270395,-1321.08,0.0002,2]
[382251092,1756552270404,-480.0,0.0002,2]
[382251094,1756552270413,-781.88,0.0002,2]
[382251096,1756552270423,-500.0,0.0002,2]
[382251098,1756552270433,-480.0,0.0002,2]
[382251100,1756552270448,-486.38,0.0002,2]
[382251102,1756552270459,-480.0,0.0002,2]
[382251104,1756552270468,-1184.14,0.0002,2]
[382251106,1756552270479,-549.61,0.0002,2]
[382251108,1756552270488,-744.54,0.0002,2]
[382251110,1756552270498,-2760.55,0.0002,2]
[382251112,1756552270507,-480.0,0.0002,2]
[382251114,1756552270518,-1580.58,0.0002,2]
[382251116,1756552270528,-530.29,0.0002,2]
[382251118,1756552270537,-1319.44,0.0002,2]
[382251120,1756552270547,-1227.7,0.0002,2]
[382251122,1756552270556,-1565.5,0.0002,2]
[382251124,1756552270566,-480.0,0.0002,2]
[382251126,1756552270575,-480.0,0.0002,2]
[382251128,1756552270585,-480.0,0.0002,2]
[382251130,1756552270594,-480.0,0.0002,2]
[382251132,1756552270604,-480.0,0.0002,2]
[382251134,1756552270613,-480.0,0.0002,2]
[382251136,1756552270623,-480.0,0.0002,2]
[382251138,1756552270632,-1424.42,0.0002,2]
[382251140,1756552270641,-1439.25,0.0002,2]
[382251142,1756552270651,-2833.44,0.0002,2]
[382251144,1756552270660,-480.0,0.0002,2]
[382251146,1756552270669,-2987.7028459,0.0002,2]
[382251148,1756552270679,-480.0,0.0002,2]
[382251150,1756552270688,-480.0,0.0002,2]
[382251152,1756552270699,-1716.48,0.0002,2]
[382251159,1756552270755,-480.0,0.0002,2]
[382251161,1756552270764,-480.0,0.0002,2]
[382251163,1756552270774,-480.0,0.0002,2]
[382251165,1756552270783,-480.0,0.0002,2]
[382251167,1756552270792,-480.0,0.0002,2]
[382251169,1756552270801,-480.0,0.0002,2]
[382251171,1756552270810,-480.0,0.0002,2]
[382251173,1756552270820,-563.68,0.0002,2]
[382251175,1756552270829,-721.22,0.0002,2]
[382251177,1756552270841,-558.61,0.0002,2]
[382251179,1756552270850,-480.0,0.0002,2]
[382251181,1756552270860,-523.48,0.0002,2]
[382251183,1756552270869,-480.0,0.0002,2]
[382251185,1756552270879,-591.05,0.0002,2]
[382251187,1756552270888,-480.0,0.0002,2]
[382251189,1756552270898,-480.0,0.0002,2]
[382251191,1756552270908,-1225.41,0.0002,2]
[382251193,1756552270917,-560.59,0.0002,2]
[382251195,1756552270928,-294.85656548,0.0002,2]
[382251197,1756552270938,-3011.45,0.0002,2]
[382251199,1756552270947,-480.0,0.0002,2]
[382251201,1756552270957,-480.0,0.0002,2]
[382251203,1756552270966,-1491.86,0.0002,2]
[382251205,1756552270975,-480.0,0.0002,2]
[382251207,1756552270985,-1336.8,0.0002,2]
[382251209,1756552270994,-480.0,0.0002,2]
[382251211,1756552271003,-1408.64,0.0002,2]
[382251213,1756552271012,-491.54,0.0002,2]
[382251215,1756552271021,-480.0,0.0002,2]
[382251217,1756552271031,-480.0,0.0002,2]
[382251219,1756552271040,-629.6,0.0002,2]
[382251221,1756552271049,-581.96,0.0002,2]
[382251223,1756552271059,-480.0,0.0002,2]
[382251225,1756552271068,-480.0,0.0002,2]
[382251227,1756552271078,-582.21,0.0002,2]
[382251229,1756552271087,-480.0,0.0002,2]
[382251231,1756552271097,-630.86,0.0002,2]
[382251233,1756552271107,-2801.83,0.0002,2]
[382251235,1756552271118,-480.0,0.0002,2]
[382251237,1756552271127,-1243.58,0.0002,2]
[382251239,1756552271136,-480.0,0.0002,2]
[382251241,1756552271147,-499.64,0.0002,2]
[382251243,1756552271156,-341.08566038,0.0002,2]
[382251245,1756552271165,-480.0,0.0002,2]
[382251247,1756552271175,-1461.61,0.0002,2]
[382251249,1756552271184,-480.0,0.0002,2]
[382251251,1756552271193,-1528.05,0.0002,2]
[382251253,1756552271203,-925.87,0.0002,2]
[382251276,1756552271420,-480.0,0.0002,2]
[382251278,1756552271429,-480.0,0.0002,2]
[382251280,1756552271442,-480.0,0.0002,2]
[382251282,1756552271453,-480.0,0.0002,2]
[382251284,1756552271462,-967.42,0.0002,2]
[382251286,1756552271471,-1250.29,0.0002,2]
[382251288,1756552271482,-342.39741091,0.0002,2]
[382251290,1756552271492,-1210.46,0.0002,2]
[382251293,1756552271502,-1391.75,0.0002,2]
[382251295,1756552271511,-480.0,0.0002,2]
[382251297,1756552271522,-480.0,0.0002,2]
[382251299,1756552271531,-394.53924839,0.0002,2]
[382251301,1756552271540,-1346.48,0.0002,2]
[382251303,1756552271549,-480.0,0.0002,2]
[382251305,1756552271559,-566.34,0.0002,2]
[382251307,1756552271568,-719.21,0.0002,2]
[382251309,1756552271577,-1645.93,0.0002,2]
[382251311,1756552271586,-480.0,0.0002,2]
[382251313,1756552271595,-480.0,0.0002,2]
[382251315,1756552271604,-556.69,0.0002,2]
[382251317,1756552271613,-480.0,0.0002,2]
[382251319,1756552271622,-626.99574344,0.0002,2]
[382251321,1756552271631,-525.07,0.0002,2]
[382251323,1756552271640,-547.24,0.0002,2]
[382251325,1756552271651,-480.0,0.0002,2]
[382251327,1756552271660,-1186.11,0.0002,2]
[382251329,1756552271669,-653.76,0.0002,2]
[382251331,1756552271679,-480.0,0.0002,2]
[382251333,1756552271688,-480.0,0.0002,2]
[382251335,1756552271698,-1302.73,0.0002,2]
[382251336,1756552271708,-480.0,0.0002,2]
[382251338,1756552271718,-480.0,0.0002,2]
[382251340,1756552271727,-480.0,0.0002,2]
[382251342,1756552271737,-480.0,0.0002,2]
[382251344,1756552271746,-480.0,0.0002,2]
[382251346,1756552271755,-480.0,0.0002,2]
[382251348,1756552271765,-1520.26,0.0002,2]
[382251350,1756552271774,-481.46913676,0.0002,2]
[382251352,1756552271783,-481.28767481,0.0002,2]
[382251354,1756552271793,-480.0,0.0002,2]
[382251357,1756552271803,-480.0,0.0002,2]
[382251358,1756552271812,-480.0,0.0002,2]
[382251360,1756552271821,-1492.7,0.0002,2]
[382251362,1756552271830,-1288.25,0.0002,2]
[382251365,1756552271842,-480.0,0.0002,2]
[382251367,1756552271851,-480.0,0.0002,2]
[382251369,1756552271861,-703.47,0.0002,2]
[382251371,1756552271870,-1916.68,0.0002,2]
[382251373,1756552271880,-480.0,0.0002,2]
[382251375,1756552271889,-1053.26,0.0002,2]
[382251377,1756552271898,-480.0,0.0002,2]
[382251379,1756552271907,-1178.3,0.0002,2]
[382251381,1756552271918,-1322.47,0.0002,2]
[382251383,1756552271927,-480.0,0.0002,2]
[382251385,1756552271936,-480.0,0.0002,2]
[382251387,1756552271945,-5010.0,0.0002,2]
[382251389,1756552271954,-1340.16,0.0002,2]
[382251391,1756552271964,-1431.31,0.0002,2]
[382251393,1756552271973,-1412.05,0.0002,2]
[382251395,1756552271983,-480.0,0.0002,2]
[382251397,1756552271992,-1650.29,0.0002,2]
[382251399,1756552272001,-1503.66,0.0002,2]
[382251401,1756552272011,-480.0,0.0002,2]
[382251403,1756552272020,-591.53,0.0002,2]
[382251405,1756552272029,-480.0,0.0002,2]
[382251407,1756552272038,-632.52,0.0002,2]
[382251409,1756552272047,-480.0,0.0002,2]
[382251411,1756552272057,-1745.66,0.0002,2]
[382251413,1756552272066,-330.75330205,0.0002,2]
[382251415,1756552272075,-1291.77,0.0002,2]
[382251417,1756552272085,-480.0,0.0002,2]
[382251419,1756552272094,-7719.17,0.0002,2]
[382251421,1756552272103,-480.0,0.0002,2]
[382251423,1756552272113,-480.0,0.0002,2]
[382251425,1756552272122,-1065.86,0.0002,2]
[382251427,1756552272131,-965.88,0.0002,2]
[382251429,1756552272141,-2006.07,0.0002,2]
[382251431,1756552272150,-480.0,0.0002,2]
[382251433,1756552272159,-2151.82,0.0002,2]
[382251435,1756552272168,-480.0,0.0002,2]
[382251436,1756552272178,-5515.28,0.0002,2]
[382251438,1756552272188,-580.82,0.0002,2]
[382251440,1756552272197,-480.0,0.0002,2]
[382251442,1756552272207,-565.32,0.0002,2]
[382251444,1756552272217,-593.92,0.0002,2]
[382251446,1756552272227,-480.0,0.0002,2]
[382251448,1756552272237,-523.6,0.0002,2]
[382251450,1756552272249,-704.19,0.0002,2]
[382251452,1756552272259,-853.56,0.0002,2]
[382251454,1756552272269,-1557.9,0.0002,2]
[382251456,1756552272279,-480.0,0.0002,2]
[382251458,1756552272288,-563.65,0.0002,2]
[382251459,1756552272297,-480.0,0.0002,2]
[382251461,1756552272308,-480.0,0.0002,2]
[382251463,1756552272317,-1980.5,0.0002,2]
[382251464,1756552272326,-1159.72,0.0002,2]
[382251466,1756552272335,-1321.71,0.0002,2]
[382251468,1756552272345,-480.0,0.0002,2]
[382251469,1756552272354,-480.0,0.0002,2]
[382251471,1756552272363,-690.5,0.0002,2]
[382251473,1756552272372,-480.0,0.0002,2]
[382251474,1756552272381,-480.0,0.0002,2]
[382251476,1756552272392,-480.0,0.0002,2]
[382251478,1756552272401,-480.0,0.0002,2]
[382251479,1756552272411,-1263.96,0.0002,2]
[382251481,1756552272420,-480.0,0.0002,2]
[382251483,1756552272429,-480.0,0.0002,2]
[382251485,1756552272442,-1991.93,0.0002,2]
[382251486,1756552272452,-2391.03,0.0002,2]
[382251488,1756552272461,-591.0,0.0002,2]
[382251490,1756552272471,-480.0,0.0002,2]
[382251491,1756552272480,-480.0,0.0002,2]
[382251493,1756552272490,-480.0,0.0002,2]
[382251495,1756552272500,-1425.2,0.0002,2]
[382251496,1756552272509,-480.0,0.0002,2]
[382251498,1756552272522,-1300.87,0.0002,2]
[382251500,1756552272531,-480.0,0.0002,2]
[382251501,1756552272540,-480.0,0.0002,2]
[382251503,1756552272550,-480.0,0.0002,2]
[382251505,1756552272559,-713.42,0.0002,2]
[382251506,1756552272569,-480.0,0.0002,2]
[382251508,1756552272578,-480.0,0.0002,2]
[382251510,1756552272589,-480.0,0.0002,2]
[382251511,1756552272598,-686.31,0.0002,2]
[382251513,1756552272608,-592.78,0.0002,2]
[382251515,1756552272617,-480.0,0.0002,2]
[382251517,1756552272628,-480.0,0.0002,2]
[382251519,1756552272637,-480.0,0.0002,2]
[382251520,1756552272646,-1228.58,0.0002,2]
[382251522,1756552272656,-520.17,0.0002,2]
[382251524,1756552272665,-164.54971832,0.0002,2]
[382251525,1756552272675,-480.0,0.0002,2]
[382251527,1756552272684,-480.0,0.0002,2]
[382251529,1756552272693,-2450.74,0.0002,2]
[382251531,1756552272702,-1496.86,0.0002,2]
[382251532,1756552272712,-480.0,0.0002,2]
[382251534,1756552272722,-671.05,0.0002,2]
[382251536,1756552272733,-711.75,0.0002,2]
[382251538,1756552272743,-1326.37,0.0002,2]
[382251540,1756552272752,-480.0,0.0002,2]
[382251541,1756552272761,-480.0,0.0002,2]
[382251543,1756552272771,-480.0,0.0002,2]
[382251545,1756552272780,-480.0,0.0002,2]
[382251547,1756552272790,-552.8,0.0002,2]
[382251548,1756552272799,-376.29603602,0.0002,2]
[382251550,1756552272809,-480.0,0.0002,2]
[382251552,1756552272819,-869.05,0.0002,2]
[382251554,1756552272828,-683.25,0.0002,2]
[382251556,1756552272838,-6634.62,0.0002,2]
[382251557,1756552272847,-480.0,0.0002,2]
[382251559,1756552272857,-577.03,0.0002,2]
[382251561,1756552272867,-480.0,0.0002,2]
[382251563,1756552272876,-480.0,0.0002,2]
[382251564,1756552272885,-1531.35,0.0002,2]
[382251566,1756552272896,-680.41,0.0002,2]
[382251568,1756552272907,-480.0,0.0002,2]
[382251570,1756552272916,-526.26718418,0.0002,2]
[382251572,1756552272927,-4001.4,0.0002,2]
[382251573,1756552272936,-480.0,0.0002,2]
[382251575,1756552272945,-647.01,0.0002,2]
[382251577,1756552272955,-161074.64924437,0.0002,2]
[382251724,1756552274689,-151.0,0.00019166,2]
[382251726,1756552274699,-170.75039321,0.00019166,2]
[382251728,1756552274708,-1000.0,0.00019166,2]
[382251729,1756552274718,-1000.0,0.00019166,2]
[382251731,1756552274728,-734.25,0.00019178,2]
[382251733,1756552274737,-2920.56488868,0.00019178,2]
[382251804,1756552275592,-1000.0,0.00019166,2]
[382251806,1756552275601,-1000.0,0.00019166,2]
[382251808,1756552275611,-1000.0,0.00019166,2]
[382251810,1756552275621,-498.05511132,0.00019178,2]
[382251812,1756552275631,-669.19,0.00019178,2]
[382251813,1756552275640,-480.0,0.00019178,2]
[382251815,1756552275654,-480.0,0.00019178,2]
[382251817,1756552275663,-500.0,0.00019178,2]
[382251819,1756552275673,-480.0,0.00019178,2]
[382251821,1756552275683,-500.0,0.00019178,2]
[382251823,1756552275693,-480.0,0.00019178,2]
[382251825,1756552275703,-480.0,0.00019178,2]
[382251826,1756552275713,-480.0,0.00019178,2]
[382251828,1756552275723,-480.0,0.00019178,2]
[382251830,1756552275733,-480.0,0.00019178,2]
[382251832,1756552275742,-480.0,0.00019178,2]
[382251834,1756552275753,-546.77,0.00019178,2]
[382251835,1756552275762,-480.0,0.00019178,2]
[382251837,1756552275772,-480.0,0.00019178,2]
[382251839,1756552275782,-480.0,0.00019178,2]
[382251841,1756552275791,-480.0,0.00019178,2]
[382251843,1756552275802,-734.25,0.00019452,2]
[382251845,1756552275811,-3418.62,0.00019452,2]
[382251846,1756552275820,-669.19,0.00019452,2]
[382251848,1756552275829,-531.07369208,0.00019452,2]
[382251850,1756552275839,-480.0,0.00019452,2]
[382251852,1756552275849,-480.0,0.00019452,2]
[382251854,1756552275858,-480.0,0.00019452,2]
[382251855,1756552275867,-480.0,0.00019452,2]
[382251857,1756552275877,-480.0,0.00019452,2]
[382251859,1756552275886,-480.0,0.00019452,2]
[382251861,1756552275896,-480.0,0.00019452,2]
[382251863,1756552275905,-480.0,0.00019452,2]
[382251865,1756552275915,-546.77,0.00019452,2]
[382251866,1756552275926,-480.0,0.00019452,2]
[382251868,1756552275935,-480.0,0.00019452,2]